fUSD/lending_fUSD_20250804
["ID","MTS","AMOUNT","RATE_DAILY","PERIOD"]
[377276883,1754315443926,-1179.29,0.00046286,120]
[377276885,1754315443936,-1179.29,0.00046286,120]
[377276887,1754315443946,-1179.29,0.00046286,120]
[377276889,1754315443955,-1179.29,0.00046286,120]
[377276891,1754315443966,-1179.29,0.00046286,120]
[377276893,1754315443976,-1179.29,0.00046286,120]
[377276895,1754315443987,-1179.29,0.00046286,120]
[377276897,1754315443996,-2253.82,0.00046286,120]
[377276899,1754315444006,-336.1393,0.00046291,120]
[377276901,1754315444015,-20167.48035939,0.00046298,120]
[377276904,1754315444025,-151.0,0.000463,120]
[377276907,1754315444035,-4638.46418,0.000463,32]
[377276910,1754315444044,-4638.46418,0.000463,32]
[377276913,1754315444054,-4638.46417,0.000463,32]
[377276915,1754315444064,-3073.54,0.000463,120]
[377276917,1754315444074,-3073.54,0.000463,120]
[377276919,1754315444084,-3073.54,0.000463,120]
[377276921,1754315444094,-3073.54,0.000463,120]
[377276923,1754315444104,-1796.91,0.000463,120]
[377276925,1754315444114,-1796.91,0.000463,120]
[377276927,1754315444124,-5000.0,0.00046301,120]
[377276930,1754315444134,-350.0,0.00046344,2]
[377276932,1754315444143,-1500.0,0.00046361,120]
[377276934,1754315444154,-312.59041025,0.0004637,120]
[377276936,1754315444164,-800.0,0.00046371,120]
[377276938,1754315444174,-800.0,0.00046372,120]
[377276940,1754315444184,-500.0,0.00046373,10]
[377276942,1754315444193,-500.0,0.00046373,10]
[377276944,1754315444203,-500.0,0.00046373,10]
[377276946,1754315444213,-251.42293786,0.00046373,10]
[377276948,1754315444222,-503.70761084,0.00046373,10]
[377276950,1754315444233,-150.0,0.00046373,10]
[377276952,1754315444243,-800.0,0.00046373,120]
[377276954,1754315444252,-19258.9908706,0.00046381,3]
[377276956,1754315444262,-38517.9817412,0.0004639,3]
[377276958,1754315444272,-1968.36426792,0.00046391,3]
[377277076,1754315446031,-211.425049,0.00039517,2]
[377277077,1754315446042,-345.24877964,0.00046,3]
[377277078,1754315446052,-22663.32617123,0.00046391,3]
[377277079,1754315446140,-13097.88816985,0.00046391,3]
[377277080,1754315446151,-5743.464,0.00046391,3]
[377277082,1754315446197,-407.82269628,0.00046391,3]
[377277083,1754315446209,-59991.7674519,0.00046391,3]
[377277087,1754315446259,-2204.86024963,0.00046391,3]
[377277094,1754315446315,-396.93306141,0.00046391,3]
[377277097,1754315446330,-2040.69241053,0.00046391,3]
[377277099,1754315446346,-4219.02918167,0.00046391,3]
[377277102,1754315446357,-1519.80000332,0.00046391,3]
[377277221,1754315534974,188.83,0.00033,2]
[377277321,1754315670224,152.8,0.00013699,2]
[377277322,1754315670594,152.8,0.0002911,2]
[377277339,1754315750857,447.9509,0.00033,2]
[377277351,1754315998918,1350.0,0.00033,120]
[377277365,1754316197755,1000.0,0.00033,14]
[377277366,1754316200519,1000.0,0.00033,14]
[377277367,1754316201688,1000.0,0.00033,14]
[377277368,1754316203723,1000.0,0.00033,14]
[377277369,1754316204516,1000.0,0.00033,14]
[377277370,1754316205206,1000.0,0.00033,14]
[377277371,1754316205873,1000.0,0.00033,14]
[377277372,1754316207062,1000.0,0.00033,14]
[377277373,1754316207958,1000.0,0.00033,14]
[377277374,1754316208902,1000.0,0.00033,14]
[377277375,1754316211788,1000.0,0.00033,14]
[377277376,1754316214991,1000.0,0.00033,14]
[377277377,1754316218668,400.0,0.00033,120]
[377277378,1754316220633,1000.0,0.00033,14]
[377277379,1754316223593,1000.0,0.00033,14]
[377277380,1754316229261,1000.0,0.00033,14]
[377277381,1754316244829,400.0,0.00033,120]
[377277387,1754316346290,400.0,0.00033,120]
[377277390,1754316394875,1292.52848819,0.00033,7]
[377277393,1754316566265,400.0,0.00032,120]
[377277394,1754316597190,800.0,0.00032,30]
[377277397,1754316609928,153.47,0.00013699,2]
[377277398,1754316610155,153.47,0.0002911,2]
[377277454,1754316633439,-653.30500156,0.00032833,2]
[377277456,1754316633450,-347.78403723,0.00032833,2]
[377277458,1754316633462,-2816.11114121,0.00032833,2]
[377277460,1754316633472,-1229.79685183,0.00032999,3]
[377277463,1754316633487,-370.20314817,0.00032999,3]
[377277465,1754316633497,-494.56424045,0.00033,120]
[377277468,1754316633525,-184.43575955,0.00033,120]
[377277470,1754316633534,-14157.59898385,0.00033,10]
[377277475,1754316633566,-5842.40101615,0.00033,10]
[377277477,1754316633576,-200.0,0.00034,30]
[377277479,1754316633586,-593.27,0.00035206,2]
[377277482,1754316633595,-150.40615043,0.000353,5]
[377277484,1754316633604,-1551.0,0.000356,3]
[377277485,1754316633614,-679.0,0.00036299,120]
[377277488,1754316633623,-1000.0,0.00036814,5]
[377277489,1754316633633,-593.27,0.00036936,2]
[377277491,1754316633645,-175.17219344,0.000371,2]
[377277493,1754316633663,-301.2601,0.00037367,2]
[377277495,1754316633685,-300.0,0.000375,3]
[377277497,1754316633707,-340.7,0.000375,2]
[377277499,1754316633729,-300.5,0.00037501,120]
[377277501,1754316633750,-11528.0,0.00037501,30]
[377277503,1754316633777,-1107.63752816,0.000379,37]
[377277505,1754316633799,-150.0,0.00038356,12]
[377277507,1754316633822,-496.0,0.00038583,15]
[377277509,1754316633843,-593.27,0.00038667,2]
[377277511,1754316633866,-344.98,0.00038689,7]
[377277513,1754316633889,-679.0,0.00038727,120]
[377277515,1754316633913,-300.0,0.00038727,120]
[377277517,1754316633935,-375.18169379,0.00039409,2]
[377277519,1754316633958,-1122.40742795,0.00039602,2]
[377277521,1754316633981,-999.22548531,0.00039678,2]
[377277523,1754316634003,-163.67,0.00039744,2]
[377277525,1754316634027,-160.0,0.000398,33]
[377277527,1754316634049,-160.0,0.000398,31]
[377277529,1754316634073,-1500.0,0.00039935,120]
[377277531,1754316634085,-2751.0,0.0003994,120]
[377277533,1754316634096,-496.0,0.00039984,15]
[377277535,1754316634106,-350.43371143,0.0004,2]
[377277537,1754316634116,-2921.09,0.00040185,2]
[377277538,1754316634126,-4239.67,0.00040244,2]
[377277539,1754316634136,-500.4582055,0.00040367,5]
[377277540,1754316634146,-500.0,0.00040367,5]
[377277541,1754316634156,-500.0,0.00040367,5]
[377277542,1754316634166,-168.74650888,0.00040367,5]
[377277543,1754316634176,-502.98137899,0.00040367,5]
[377277544,1754316634186,-593.27,0.00040397,2]
[377277545,1754316634196,-2000.0,0.000407,14]
[377277546,1754316634205,-478.291,0.00040732,59]
[377277547,1754316634215,-919.33729056,0.00040732,2]
[377277548,1754316634224,-160.0,0.00041,33]
[377277549,1754316634234,-2882.64,0.00041087,2]
[377277550,1754316634244,-200.0,0.00041096,20]
[377277551,1754316634253,-590.0,0.000411,2]
[377277552,1754316634263,-500.0,0.00041294,10]
[377277553,1754316634272,-503.58483606,0.00041294,10]
[377277554,1754316634284,-2163.08,0.00041323,120]
[377277555,1754316634294,-1000.0,0.00041323,2]
[377277556,1754316634303,-150.0,0.00041323,2]
[377277557,1754316634313,-150.0,0.00041323,120]
[377277558,1754316634323,-150.0,0.00041323,2]
[377277559,1754316634332,-768.77,0.00041323,2]
[377277560,1754316634342,-500.0,0.00041325,10]
[377277561,1754316634351,-500.0,0.00041325,10]
[377277562,1754316634361,-158.7,0.0004135,120]
[377277563,1754316634370,-901.12,0.00041368,120]
[377277564,1754316634380,-496.0,0.00041384,120]
[377277565,1754316634390,-435.44336966,0.00041405,2]
[377277566,1754316634399,-230.16,0.00041446,2]
[377277567,1754316634408,-230.16,0.00041468,2]
[377277568,1754316634418,-230.16,0.0004149,2]
[377277569,1754316634429,-230.16,0.00041512,2]
[377277570,1754316634438,-500.0,0.00041518,10]
[377277571,1754316634447,-230.16,0.00041534,2]
[377277572,1754316634457,-250.0,0.00041548,120]
[377277573,1754316634466,-230.16,0.00041555,2]
[377277574,1754316634475,-230.16,0.00041577,2]
[377277575,1754316634485,-500.0,0.00041588,2]
[377277576,1754316634495,-2532.02,0.00041597,2]
[377277577,1754316634505,-230.16,0.00041599,2]
[377277578,1754316634514,-230.16,0.00041621,2]
[377277579,1754316634526,-230.16,0.00041643,2]
[377277580,1754316634536,-230.16,0.00041664,2]
[377277581,1754316634546,-230.16,0.00041686,2]
[377277582,1754316634556,-4763.33,0.00041688,2]
[377277583,1754316634566,-230.16,0.00041708,2]
[377277584,1754316634576,-230.16,0.0004173,2]
[377277585,1754316634586,-175.0,0.00041738,7]
[377277586,1754316634596,-546.85,0.00041744,2]
[377277587,1754316634606,-4490.03,0.0004175,2]
[377277588,1754316634615,-230.16,0.00041752,2]
[377277589,1754316634625,-230.16,0.00041774,2]
[377277590,1754316634635,-230.16,0.00041795,2]
[377277591,1754316634644,-230.16,0.00041817,2]
[377277592,1754316634654,-230.16,0.00041839,2]
[377277593,1754316634664,-230.16,0.00041861,2]
[377277594,1754316634674,-500.0,0.00041873,10]
[377277595,1754316634684,-166.32,0.0004189,2]
[377277596,1754316634694,-1772.57873919,0.00041902,2]
[377277597,1754316634705,-160.0,0.00042,39]
[377277598,1754316634715,-160.0,0.00042,29]
[377277599,1754316634728,-160.0,0.00042,21]
[377277600,1754316634738,-1388.0,0.00042,6]
[377277601,1754316634748,-2586.92,0.0004205,2]
[377277602,1754316634758,-1000.0,0.00042066,10]
[377277603,1754316634767,-593.27,0.00042127,120]
[377277604,1754316634778,-2500.0,0.00042128,10]
[377277605,1754316634788,-2500.0,0.00042137,10]
[377277606,1754316634799,-2500.0,0.00042146,10]
[377277607,1754316634809,-2500.0,0.00042155,10]
[377277608,1754316634818,-2500.0,0.00042164,10]
[377277609,1754316634828,-2562.19,0.00042167,2]
[377277610,1754316634838,-2500.0,0.00042172,10]
[377277611,1754316634848,-2500.0,0.00042181,10]
[377277612,1754316634858,-2500.0,0.0004219,10]
[377277613,1754316634868,-187.16,0.0004222,2]
[377277614,1754316634878,-2622.13,0.00042284,2]
[377277615,1754316634887,-165.79,0.0004233,2]
[377277616,1754316634897,-150.0,0.00042461,2]
[377277617,1754316634906,-169.04,0.00042563,2]
[377277618,1754316634916,-1500.0,0.00042614,10]
[377277619,1754316634926,-496.0,0.00042785,120]
[377277620,1754316634937,-508.0,0.00042819,10]
[377277621,1754316634947,-160.0,0.00043,55]
[377277622,1754316634956,-160.0,0.00043,44]
[377277623,1754316634966,-152.0,0.00043063,3]
[377277624,1754316634976,-2000.0,0.00043162,10]
[377277625,1754316634986,-340.7,0.00043308,14]
[377277626,1754316634999,-508.0,0.00043392,10]
[377277627,1754316635009,-1502.62,0.00043513,2]
[377277628,1754316635019,-396.83,0.00043513,2]
[377277629,1754316635030,-852.64,0.00043513,2]
[377277630,1754316635039,-499.99,0.00043513,2]
[377277631,1754316635049,-9999.99,0.00043513,2]
[377277632,1754316635059,-8165.72,0.00043513,2]
[377277633,1754316635069,-338.99,0.00043513,2]
[377277634,1754316635078,-344.98,0.00043569,14]
[377277635,1754316635088,-150.0,0.00043572,2]
[377277636,1754316635098,-250.0,0.000436,2]
[377277637,1754316635108,-2000.0,0.0004371,10]
[377277638,1754316635117,-223.60933663,0.00043804,2]
[377277639,1754316635127,-200.0,0.00043836,120]
[377277640,1754316635136,-593.27,0.00043858,120]
[377277641,1754316635146,-17873.4,0.00043924,2]
[377277642,1754316635155,-508.0,0.00043964,10]
[377277643,1754316635165,-403.38973194,0.00044,30]
[377277644,1754316635175,-3379.89261844,0.00044,30]
[377277645,1754316635185,-929.16,0.00044002,30]
[377277646,1754316635194,-466.93,0.00044004,30]
[377277647,1754316635204,-833.03,0.00044004,30]
[377277648,1754316635214,-818.41,0.00044004,30]
[377277649,1754316635223,-466.93,0.00044004,30]
[377277650,1754316635233,-818.41,0.00044004,30]
[377277651,1754316635242,-466.93,0.00044004,30]
[377277652,1754316635252,-466.93,0.00044004,30]
[377277653,1754316635262,-466.93,0.00044004,30]
[377277654,1754316635273,-466.93,0.00044004,30]
[377277655,1754316635284,-466.93,0.00044004,30]
[377277656,1754316635294,-287.5,0.00044004,30]
[377277657,1754316635303,-2227.44995854,0.00044041,120]
[377277658,1754316635313,-239.11,0.00044063,14]
[377277659,1754316635322,-150.0,0.00044106,2]
[377277660,1754316635332,-172.88,0.00044139,30]
[377277661,1754316635342,-537.09,0.00044139,30]
[377277662,1754316635351,-150.0,0.00044139,30]
[377277663,1754316635361,-437.21,0.00044139,30]
[377277664,1754316635370,-172.88,0.00044139,30]
[377277665,1754316635380,-150.0,0.00044139,30]
[377277666,1754316635390,-537.09,0.00044139,30]
[377277667,1754316635401,-537.09,0.00044139,30]
[377277668,1754316635412,-359.08,0.00044139,30]
[377277669,1754316635422,-150.0,0.00044139,30]
[377277670,1754316635431,-172.88,0.00044139,30]
[377277671,1754316635441,-150.0,0.00044139,30]
[377277672,1754316635451,-537.09,0.00044141,30]
[377277673,1754316635460,-300.9,0.00044141,30]
[377277674,1754316635471,-165.39,0.00044141,30]
[377277675,1754316635480,-172.88,0.00044141,30]
[377277676,1754316635490,-359.08,0.00044141,30]
[377277677,1754316635500,-172.88,0.00044141,30]
[377277678,1754316635510,-165.39,0.00044141,30]
[377277679,1754316635519,-537.09,0.00044141,30]
[377277680,1754316635531,-165.39,0.00044141,30]
[377277681,1754316635541,-172.88,0.00044141,30]
[377277682,1754316635550,-536.4,0.00044141,30]
[377277683,1754316635560,-275.11,0.00044141,30]
[377277684,1754316635569,-165.11,0.00044141,30]
[377277685,1754316635579,-168.51,0.00044141,30]
[377277686,1754316635589,-359.08,0.00044141,30]
[377277687,1754316635599,-359.08,0.00044141,30]
[377277688,1754316635609,-150.0,0.00044141,30]
[377277689,1754316635619,-325.95,0.00044141,30]
[377277690,1754316635629,-439.43,0.00044141,30]
[377277691,1754316635638,-359.08,0.00044141,30]
[377277692,1754316635648,-496.0,0.00044185,120]
[377277693,1754316635657,-2227.44995846,0.00044191,120]
[377277694,1754316635667,-150.0,0.00044195,2]
[377277695,1754316635676,-229.96828733,0.00044201,14]
[377277696,1754316635686,-150.0,0.0004421,2]
[377277697,1754316635696,-150.0,0.00044268,2]
[377277698,1754316635706,-238.80480636,0.00044323,10]
[377277699,1754316635715,-2227.44995846,0.00044342,120]
[377277700,1754316635725,-150.0,0.00044352,2]
[377277701,1754316635735,-841.59890878,0.00044448,2]
[377277702,1754316635744,-457.2201239,0.00044448,2]
[377277703,1754316635754,-200.0,0.00044464,2]
[377277704,1754316635763,-150.0,0.00044473,10]
[377277705,1754316635775,-2433.55180939,0.0004449,120]
[377277706,1754316635786,-2227.44995846,0.00044492,120]
[377277707,1754316635796,-150.0,0.00044496,10]
[377277708,1754316635806,-153.47,0.00044521,2]
[377277709,1754316635816,-508.0,0.00044537,10]
[377277710,1754316635827,-340.7,0.00044615,14]
[377277711,1754316635836,-2227.44995846,0.00044643,120]
[377277712,1754316635846,-958.49304823,0.000447,30]
[377277713,1754316635855,-150.0,0.0004477,2]
[377277714,1754316635865,-2227.44995846,0.00044793,120]
[377277715,1754316635875,-150.0,0.00044809,2]
[377277716,1754316635885,-150.0,0.00044813,2]
[377277717,1754316635894,-6942.05113367,0.00044861,15]
[377277718,1754316635904,-1383.84708396,0.00044863,6]
[377277719,1754316635914,-180.45644544,0.000449,28]
[377277720,1754316635924,-150.0,0.00044909,2]
[377277721,1754316635936,-150.0,0.00044921,2]
[377277722,1754316635956,-150.0,0.00044939,2]
[377277723,1754316635979,-2227.44995846,0.00044944,120]
[377277724,1754316636003,-21419.0,0.00044954,2]
[377277725,1754316636024,-152.0,0.00044958,4]
[377277726,1754316636080,-150.0,0.00044961,30]
[377277727,1754316636130,-150.0,0.00044961,30]
[377277728,1754316636172,-537.09,0.00044961,30]
[377277729,1754316636204,-150.0,0.00044961,30]
[377277730,1754316636226,-150.0,0.00044961,30]
[377277731,1754316636249,-150.0,0.00044961,30]
[377277732,1754316636271,-359.08,0.00044961,30]
[377277733,1754316636287,-150.0,0.00044961,30]
[377277734,1754316636297,-150.0,0.00044961,30]
[377277735,1754316636307,-359.08,0.00044961,30]
[377277736,1754316636317,-150.0,0.00044961,30]
[377277737,1754316636327,-172.88,0.00044961,30]
[377277738,1754316636336,-150.0,0.00044961,30]
[377277739,1754316636346,-150.0,0.00044961,30]
[377277740,1754316636355,-359.08,0.00044961,30]
[377277741,1754316636365,-150.0,0.00044961,30]
[377277742,1754316636375,-150.0,0.00044961,30]
[377277743,1754316636385,-172.88,0.00044961,30]
[377277744,1754316636395,-150.0,0.00044961,30]
[377277745,1754316636405,-359.08,0.00044961,30]
[377277746,1754316636414,-150.0,0.00044961,30]
[377277747,1754316636424,-150.0,0.00044961,30]
[377277748,1754316636434,-172.88,0.00044961,30]
[377277749,1754316636443,-150.0,0.00044961,30]
[377277750,1754316636753,-150.0,0.00044961,30]
[377277751,1754316636783,-359.08,0.00044961,30]
[377277752,1754316636794,-150.0,0.00044961,30]
[377277753,1754316636803,-172.88,0.00044961,30]
[377277754,1754316636813,-150.0,0.00044961,30]
[377277755,1754316636823,-359.08,0.00044961,30]
[377277756,1754316636833,-166.51,0.00044961,30]
[377277757,1754316636843,-172.88,0.00044961,30]
[377277758,1754316636852,-359.08,0.00044961,30]
[377277759,1754316636862,-172.88,0.00044961,30]
[377277760,1754316636872,-359.08,0.00044961,30]
[377277761,1754316636883,-359.08,0.00044961,30]
[377277762,1754316636892,-172.88,0.00044961,30]
[377277763,1754316636902,-176.9,0.00044961,30]
[377277764,1754316636912,-345.54,0.00044961,30]
[377277765,1754316636922,-179.77,0.00044961,30]
[377277766,1754316636931,-344.98,0.00044966,14]
[377277767,1754316636940,-150.0,0.00044968,2]
[377277768,1754316636950,-628.06011456,0.00044973,10]
[377277769,1754316636960,-500.0,0.00044973,10]
[377277770,1754316636971,-168.71951464,0.00044973,7]
[377277771,1754316636981,-537.1254451,0.00044973,10]
[377277772,1754316636992,-500.0,0.00044973,10]
[377277773,1754316637009,-500.0,0.00044973,10]
[377277774,1754316637019,-500.0,0.00044973,10]
[377277775,1754316637031,-500.0,0.00044973,10]
[377277776,1754316637042,-383.36687422,0.00044973,10]
[377277777,1754316637052,-500.0,0.00044973,10]
[377277778,1754316637063,-500.43177966,0.00044973,10]
[377277779,1754316637074,-500.0,0.00044973,10]
[377277780,1754316637084,-500.0,0.00044973,10]
[377277781,1754316637094,-500.0,0.00044973,10]
[377277782,1754316637104,-500.0,0.00044973,10]
[377277783,1754316637120,-500.0,0.00044973,10]
[377277784,1754316637131,-500.0,0.00044973,10]
[377277785,1754316637140,-500.0,0.00044973,10]
[377277786,1754316637150,-20859.0882493,0.0004499,3]
[377277787,1754316637159,-344.88,0.00044999,30]
[377277788,1754316637169,-1092.15,0.00044999,30]
[377277789,1754316637179,-165.26,0.00044999,30]
[377277790,1754316637188,-358.72,0.00044999,30]
[377277791,1754316637198,-459.29,0.00045,120]
[377277792,1754316637207,-1179.29,0.00045,120]
[377277793,1754316637217,-1179.29,0.00045,120]
[377277794,1754316637227,-1179.29,0.00045,120]
[377277795,1754316637236,-1179.29,0.00045,120]
[377277796,1754316637246,-1179.29,0.00045,120]
[377277797,1754316637256,-50000.0,0.00045,45]
[377277798,1754316637266,-50000.0,0.00045,55]
[377277799,1754316637277,-25028.30291818,0.00045,120]
[377277800,1754316637287,-154.0,0.00045,120]
[377277801,1754316637296,-151.0,0.00045,120]
[377277802,1754316637307,-486.869011,0.00045,120]
[377277803,1754316637316,-160.0,0.00045,120]
[377277804,1754316637326,-160.0,0.00045,90]
[377277805,1754316637336,-1500.0,0.00045,30]
[377277806,1754316637345,-166.66666665,0.00045,120]
[377277807,1754316637356,-1500.0,0.00045,30]
[377277808,1754316637366,-1500.0,0.00045,30]
[377277809,1754316637375,-1500.0,0.00045,30]
[377277810,1754316637384,-1500.0,0.00045,30]
[377277811,1754316637395,-1500.0,0.00045,30]
[377277812,1754316637405,-1500.0,0.00045,30]
[377277813,1754316637415,-1500.0,0.00045,30]
[377277814,1754316637424,-1500.0,0.00045,30]
[377277815,1754316637434,-1500.0,0.00045,30]
[377277816,1754316637443,-853.65,0.00045,30]
[377277817,1754316637452,-1000.0,0.00045,7]
[377277818,1754316637462,-301.99,0.00045,120]
[377277819,1754316637472,-2227.44995846,0.00045094,120]
[377277820,1754316637481,-508.0,0.0004511,10]
[377277821,1754316637491,-150.0,0.00045181,2]
[377277822,1754316637502,-150.0,0.00045187,2]
[377277823,1754316637512,-150.0,0.00045192,2]
[377277824,1754316637522,-150.0,0.00045222,2]
[377277825,1754316637534,-4862.49649593,0.00045244,15]
[377277826,1754316637544,-2227.44995846,0.00045245,120]
[377277827,1754316637554,-6942.05113359,0.00045251,15]
[377277828,1754316637564,-150.0,0.00045253,2]
[377277829,1754316637574,-150.0,0.00045266,2]
[377277830,1754316637583,-150.0,0.00045274,2]
[377277831,1754316637593,-150.0,0.00045324,2]
[377277832,1754316637603,-150.0,0.00045344,2]
[377277833,1754316637612,-154.34147298,0.00045373,10]
[377277834,1754316637622,-187.16,0.00045387,2]
[377277835,1754316637632,-62577.2647479,0.0004539,3]
[377277836,1754316637641,-2227.44995846,0.00045395,120]
[377277837,1754316637650,-180.45644543,0.000454,28]
[377277838,1754316637660,-98116.88043128,0.000454,2]
[377277839,1754316637669,-150.0,0.00045455,2]
[377277840,1754316637679,-155.24603399,0.00045473,10]
[377277841,1754316637688,-150.0,0.00045497,2]
[377277842,1754316637698,-151.33,0.00045499,2]
[377277843,1754316637708,-151.85,0.00045499,2]
[377277844,1754316637717,-1000.0,0.00045521,10]
[377277845,1754316637727,-1000.0,0.00045521,10]
[377277846,1754316637736,-456.5102112,0.00045521,10]
[377277847,1754316637746,-1000.0,0.00045521,10]
[377277848,1754316637756,-503.61191261,0.00045521,10]
[377277849,1754316637765,-636.8435916,0.00045521,10]
[377277850,1754316637775,-1000.0,0.00045521,10]
[377277851,1754316637787,-1000.0,0.00045521,10]
[377277852,1754316637797,-1000.21942331,0.00045521,10]
[377277853,1754316637806,-1000.0,0.00045521,10]
[377277854,1754316637816,-1000.0,0.00045521,10]
[377277855,1754316637826,-150.0,0.0004554,2]
[377277856,1754316637836,-2227.44995846,0.00045546,120]
[377277857,1754316637849,-359.08,0.00045578,30]
[377277858,1754316637858,-359.08,0.00045578,30]
[377277859,1754316637868,-496.0,0.00045586,120]
[377277860,1754316637877,-593.27,0.00045588,120]
[377277861,1754316637886,-4862.49649589,0.00045591,15]
[377277862,1754316637895,-800.0,0.000456,16]
[377277863,1754316637905,-150.0,0.00045611,2]
[377277864,1754316637915,-150.0,0.00045622,2]
[377277865,1754316637924,-6942.05113359,0.0004564,15]
[377277866,1754316637934,-508.0,0.00045682,11]
[377277867,1754316637943,-2227.44995846,0.00045696,120]
[377277868,1754316637954,-150.0,0.000457,2]
[377277869,1754316637964,-1600.0,0.000457,16]
[377277870,1754316637975,-150.0,0.00045727,2]
[377277871,1754316637987,-150.0,0.00045796,2]
[377277872,1754316638004,-2500.0,0.000458,16]
[377277874,1754316638014,-2227.44995846,0.00045847,120]
[377277875,1754316638025,-1000.0,0.00045867,14]
[377277876,1754316638038,-500.0,0.00045873,10]
[377277877,1754316638048,-3300.0,0.000459,16]
[377277878,1754316638059,-180.45644543,0.000459,28]
[377277879,1754316638069,-1408.7,0.000459,120]
[377277880,1754316638079,-1408.7,0.000459,120]
[377277881,1754316638088,-1408.7,0.000459,120]
[377277882,1754316638098,-1408.7,0.000459,120]
[377277883,1754316638109,-1714.49745,0.0004591,30]
[377277884,1754316638118,-150.0,0.00045917,2]
[377277885,1754316638128,-7519.43655497,0.0004592,3]
[377277886,1754316638194,-6043.22730918,0.0004592,3]
[377277887,1754316638206,-1727.9,0.0004592,3]
[377277888,1754316638218,-5568.52438515,0.0004592,3]
[377277889,1754316638228,-150.0,0.00045923,2]
[377277890,1754316638238,-650.20878153,0.0004593,2]
[377277891,1754316638249,-150.0,0.00045931,2]
[377277892,1754316638258,-4862.49649589,0.00045938,15]
[377277893,1754316638268,-150.0,0.00045959,2]
[377277894,1754316638280,-227.14,0.00045965,14]
[377277895,1754316638290,-150.0,0.00045973,3]
[377277896,1754316638300,-150.0,0.00045973,10]
[377277897,1754316638310,-150.0,0.00045981,2]
[377277898,1754316638321,-150.0,0.00045982,2]
[377277899,1754316638331,-151.18,0.0004599,2]
[377277900,1754316638341,-335.95879001,0.0004599,7]
[377277901,1754316638350,-41718.1764986,0.0004599,3]
[377277902,1754316638360,-569.3707143,0.0004599,3]
[377277903,1754316638370,-2227.44995846,0.00045997,120]
[377277904,1754316638380,-1000.0,0.00045999,2]
[377277905,1754316638390,-21590.39908717,0.00046,61]
[377277906,1754316638399,-50000.0,0.00046,46]
[377277907,1754316638408,-50000.0,0.00046,56]
[377277908,1754316638418,-500.0,0.00046,120]
[377277909,1754316638428,-447.04,0.00046,3]
[377277910,1754316638437,-447.25192964,0.00046,3]
[377277911,1754316638447,-1408.84,0.00046,120]
[377277912,1754316638457,-1408.7,0.00046,120]
[377277913,1754316638466,-1408.7,0.00046,120]
[377277914,1754316638477,-1408.7,0.00046,120]
[377277915,1754316638488,-1408.7,0.00046,120]
[377277916,1754316638497,-898.57,0.00046,120]
[377277917,1754316638508,-898.45,0.00046,120]
[377277918,1754316638518,-898.45,0.00046,120]
[377277919,1754316638528,-898.45,0.00046,120]
[377277920,1754316638538,-227.14,0.00046006,14]
[377277921,1754316638548,-150.0,0.00046007,2]
[377277922,1754316638557,-6942.05113359,0.0004603,15]